[Event "1000GM Schev-G5 March 2024"]
[Site "Santa Clara"]
[Date "2024.03.09"]
[Round "1.1"]
[White "Zhou, Ivan"]
[Black "Gongora Montes, Benjamin"]
[Result "1/2-1/2"]
[ECO "C10"]
[WhiteElo "1905"]
[BlackElo "2106"]
[Annotator "RC"]
[PlyCount "47"]
[EventDate "2024.03.06"]
[EventType "schev"]
[EventCountry "USA"]
[SourceTitle "playchess.com"]
[Source "ChessBase"]
[SourceQuality "1"]
[TimeControl "5400+30"]

1. e4 {[%emt 0:00:06]} e6 {[%emt 0:00:10]} 2. d4 {[%emt 0:00:30]} d5 {[%emt 0:00:11]} 3. Nd2 {[%emt 0:00:17]} dxe4 {[%emt 0:01:12]} 4. Nxe4 {[%emt 0:00:14]} Nf6 {[%emt 0:00:17]} 5. Nxf6+ {[%emt 0:01:40]} gxf6 {[%emt 0:00:14]} 6. Nf3 {[%emt 0:00:47]} b6 {[%emt 0:00:32]} 7. Bb5+ {[%emt 0:01:36]} c6 {[%emt 0:00:10]} 8. Be2 {[%emt 0:00:41]} Qc7 {[%emt 0:00:10]} 9. Be3 {[%emt 0:02:07]} Nd7 {[%emt 0:00:18]} 10. Qd2 {[%emt 0:01:24]} Bb7 {[%emt 0:00:28]} 11. O-O-O {[%emt 0:01:28]} O-O-O {[%emt 0:00:15]} 12. Bf4 {[%emt 0:01:57]} Bd6 {[%emt 0:00:48]} 13. Bxd6 {[%emt 0:03:59]} Qxd6 {[%emt 0:00:04]} 14. Rhe1 {[%emt 0:02:57]} Rhg8 {[%emt 0:00:22]} 15. g3 {[%emt 0:02:51]} c5 {[%emt 0:09:29]} 16. dxc5 {[%emt 0:07:00]} Qxd2+ {[%emt 0:00:13]} 17. Rxd2 {[%emt 0:00:04]} Nxc5 {[%emt 0:00:25]} 18. Nh4 {[%emt 0:05:06]} Rxd2 {[%emt 0:10:08]} 19. Kxd2 {[%emt 0:00:14]} Rd8+ {[%emt 0:00:15]} 20. Kc1 {[%emt 0:04:45]} Kc7 {[%emt 0:01:48]} 21. Bf3 {[%emt 0:02:50]} Bxf3 {[%emt 0:04:00]} 22. Nxf3 {[%emt 0:00:11]} Rd5 {[%emt 0:00:20]} 23. Re2 {[%emt 0:06:03]} b5 {[%emt 0:02:22]} 24. Rd2 {[%emt 0:06:59]} 1/2-1/2

[Event "1000GM Schev-G5 March 2024"]
[Site "Santa Clara"]
[Date "2024.03.09"]
[Round "1.2"]
[White "Xia, Joshua"]
[Black "Garcia Lopez, Miguel Angel"]
[Result "1-0"]
[ECO "C60"]
[WhiteElo "1938"]
[BlackElo "2262"]
[Annotator "TA"]
[PlyCount "87"]
[EventDate "2024.03.06"]
[EventType "schev"]
[EventCountry "USA"]
[SourceTitle "playchess.com"]
[Source "ChessBase"]
[SourceQuality "1"]
[TimeControl "5400+30"]

{[%evp 9,87,20,50,27,31,25,39,39,22,-3,0,0,324,327,359,216,203,208,256,158,154,96,77,77,110,107,179,162,184,190,204,202,230,250,222,0,316,317,324,308,306,283,282,256,267,272,263,242,245,177,232,231,367,388,426,406,431,426,450,438,484,473,829,821,793,831,821,817,1097,1097,1070,990,1198,1194,1688,1657,2618,2453,1831,1693]} 1. e4 {[%emt 0:00:01]} e5 {[%emt 0:00:18]} 2. Nf3 {[%emt 0:00:06]} Nc6 {[%emt 0:00:10]} 3. Bb5 {[%emt 0:00:04]} Nge7 {[%emt 0:00:10][%cal Bg8e7,Be7g6,Bg6f4,Bf4g2][%mdl 32]} 4. Nc3 {[%emt 0:00:08]} Ng6 {[%emt 0:00:20]} 5. h4 {[%emt 0:00:13][%cal Bh2h4,Bh4h5][%mdl 32]} Nd4 {[%emt 0:04:03]} 6. h5 {[%emt 0:00:09] Threatens to win with Nxd4.} Nf4 {[%emt 0:03:31]} 7. d3 {[%emt 0:00:06]} Nxg2+ {[%emt 0:16:51]} 8. Kf1 {[%emt 0:00:03] White is slightly better.} c6 {[%emt 0:03:18]} 9. Bc4 {[%emt 0:00:06]} (9. Nxd4 $5 exd4 10. Nd5 $14) 9... Nxf3 {[%emt 0:08:36]} 10. Qxf3 {[%emt 0:02:04][%csl Gc4][%cal Rf3f7]} d5 $2 {[%emt 0:00:02][%mdl 8192]} 11. exd5 $18 {[%emt 0:00:42]} Nh4 {[%emt 0:00:08]} 12. Qg3 {[%emt 0:02:49]} Be7 {[%emt 0:05:02]} 13. dxc6 {[%emt 0:08:56]} O-O {[%emt 0:21:01]} (13... bxc6 $2 14. Qxg7 (14. Qxe5 O-O $18) 14... Rf8 15. Ne4 $18 (15. Qxe5 Nf3 $18) (15. Qxh7 Bf5 $18)) 14. c7 {[%emt 0:02:06]} Qd4 {[%emt 0:04:56]} 15. Be3 $40 {[%emt 0:01:33][%mdl 128] White wants a kill. The board is on fire. White is more active.} (15. Nd5 $142 Nf5 16. Qg2 (16. Nxe7+ Nxe7 17. Rh4 Nf5 $18)) 15... Nf5 $16 {[%emt 0:00:29]} 16. Qf3 {[%emt 0:04:57]} (16. Bxd4 Nxg3+ 17. fxg3 exd4) 16... Nxe3+ {[%emt 0:04:35]} 17. fxe3 {[%emt 0:00:24]} Qc5 {[%emt 0:05:34]} (17... Qd6 $16 {was worth a try.}) 18. Ke2 {[%emt 0:13:39] Strongly threatening Rag1.} Be6 {[%emt 0:11:37]} 19. Rhg1 {[%emt 0:04:30]} (19. Qxb7 Bxc4 20. dxc4 Qxc4+ 21. Kd2 Bb4 $16) (19. Bxe6 fxe6 20. Qxb7 Rac8) 19... Bxc4 {[%emt 0:01:21] [#]} (19... Qxc7 $2 20. Qg2 g5 21. hxg6 fxg6 22. Bxe6+ $18) 20. Qg4 {[%emt 0:00:41][%csl Gg1][%cal Rg4g7]} Bxd3+ {[%emt 0:03:44]} 21. cxd3 {[%emt 0:00:31]} g6 {[%emt 0:00:39] [#] Black is weak on the light squares} 22. Rac1 $2 {[%emt 0:04:09]} (22. hxg6 $1 $18 hxg6 23. Qc4) 22... Qb4 $2 {[%emt 0:00:51][%mdl 8192]} (22... Qxc7 $11 {and Black is okay.} 23. hxg6 hxg6 (23... fxg6 24. Qe6+ Rf7 25. Rgf1 $11)) 23. Qxb4 {[%emt 0:01:47]} Bxb4 {[%emt 0:00:07]} 24. Nd5 {[%emt 0:00:19]} Bd6 {[%emt 0:00:12]} 25. Rc4 {[%emt 0:05:18]} Rac8 {[%emt 0:00:53]} 26. Rgc1 {[%emt 0:01:13]} f5 {[%emt 0:02:33]} 27. Ra4 {[%emt 0:00:40]} a6 {[%emt 0:00:09]} 28. Rac4 {[%emt 0:00:40]} Rf7 {[%emt 0:00:17]} 29. b4 {[%emt 0:00:23]} f4 {[%emt 0:00:47]} (29... gxh5 {was necessary.} 30. a4 f4) 30. a4 $18 {[%emt 0:02:16][%cal Ba2a4,Ba4b5,Bb5b6][%mdl 32]} g5 {[%emt 0:01:20]} (30... gxh5 $142 31. b5 axb5 32. axb5 Kh8) 31. b5 {[%emt 0:01:12]} axb5 {[%emt 0:00:11]} 32. axb5 {[%emt 0:00:39]} g4 {[%emt 0:00:07][%cal Bg5g4,Bg4g3][%mdl 32]} 33. b6 {[%emt 0:00:44] White is clearly winning.} f3+ {[%emt 0:00:13]} 34. Kf1 {[%emt 0:00:17]} (34. Kf2 e4 35. Nf4 (35. Rxe4 g3+ 36. Kg1 Rf5 $18) 35... Bxf4 36. exf4 g3+ 37. Kxg3 Rg7+ 38. Kh2 (38. Kf2 Rg2+ 39. Ke3 Re2+ 40. Kd4 f2 $16) 38... Rg2+ 39. Kh3 exd3) 34... g3 {[%emt 0:01:31]} 35. Rg4+ {[%emt 0:00:36]} Rg7 {[%emt 0:00:01]} (35... Kf8 $142 36. Rxg3 e4) 36. Nf6+ {[%emt 0:00:06]} Kh8 {[%emt 0:01:19]} 37. Rxg7 {[%emt 0:00:17]} Kxg7 {[%emt 0:00:01][%mdl 4096] Endgame. KRB-KRN} 38. Ne4 {[%emt 0:00:25][%csl LRd6,LRg3]} Bb4 {[%emt 0:01:23]} 39. Nxg3 {[%emt 0:00:21]} Kf6 {[%emt 0:00:22]} 40. Ne4+ {[%emt 0:00:42]} Ke6 {[%emt 0:00:23]} 41. Rc4 {[%emt 0:02:04]} Ba5 {[%emt 0:00:14] [#]} 42. Rc6+ $3 {[%emt 0:00:14][%mdl 512]} Kd7 {[%emt 0:00:16]} (42... Ke7 43. Rh6) 43. Rd6+ {[%emt 0:00:16]} Ke7 {[%emt 0:00:08]} 44. Rh6 {[%emt 0:00:12] Weighted Error Value: White=0.32/Black=0.47.  Loses game:     	---       	Black=2      Missed win:     	White=1     	---        Mistake:       	White=1     	Black=4      Inaccurate:     	White=2     	Black=1      OK:         	White=10    	Black=11     Best:        	White=3     	Black=2} 1-0

[Event "1000GM Schev-G5 March 2024"]
[Site "Santa Clara"]
[Date "2024.03.09"]
[Round "1.3"]
[White "Bhaduri, Neil S"]
[Black "Urbina Quiroz, Edwin"]
[Result "1-0"]
[ECO "A14"]
[WhiteElo "1917"]
[BlackElo "2047"]
[Annotator "RC"]
[PlyCount "59"]
[EventDate "2024.03.06"]
[EventType "schev"]
[EventCountry "USA"]
[SourceTitle "playchess.com"]
[Source "ChessBase"]
[SourceQuality "1"]
[TimeControl "5400+30"]

1. Nf3 {[%emt 0:00:01]} d5 {[%emt 0:00:57]} 2. c4 {[%emt 0:00:05]} e6 {[%emt 0:00:05]} 3. b3 {[%emt 0:00:03]} Nf6 {[%emt 0:00:05]} 4. g3 {[%emt 0:00:04]} Be7 {[%emt 0:00:06]} 5. Bg2 {[%emt 0:00:03]} O-O {[%emt 0:00:22]} 6. O-O {[%emt 0:00:03]} c5 {[%emt 0:00:08]} 7. e3 {[%emt 0:00:07]} Nc6 {[%emt 0:00:09]} 8. Bb2 {[%emt 0:00:10]} b6 {[%emt 0:00:12]} 9. Qe2 {[%emt 0:01:13]} Ba6 {[%emt 0:00:11]} 10. d3 {[%emt 0:01:53]} Rc8 {[%emt 0:00:12]} 11. Nc3 {[%emt 0:02:56]} Re8 {[%emt 0:00:08]} 12. Rad1 {[%emt 0:06:25]} Bf8 {[%emt 0:00:24]} 13. Nh4 {[%emt 0:07:48]} Qd7 {[%emt 0:05:10]} 14. f4 {[%emt 0:09:52]} d4 {[%emt 0:16:27]} 15. Ne4 {[%emt 0:04:26]} Be7 {[%emt 0:00:23]} 16. Nf3 {[%emt 0:08:36]} dxe3 {[%emt 0:13:20]} 17. Nxf6+ {[%emt 0:01:13]} Bxf6 {[%emt 0:00:08]} 18. Bxf6 {[%emt 0:03:51]} gxf6 {[%emt 0:00:04]} 19. Qxe3 {[%emt 0:00:39]} f5 {[%emt 0:22:13]} 20. d4 {[%emt 0:10:03]} cxd4 {[%emt 0:12:59]} 21. Nxd4 {[%emt 0:00:12]} Nxd4 {[%emt 0:00:10]} 22. Rxd4 {[%emt 0:01:22]} Qc7 {[%emt 0:00:10]} 23. Rfd1 {[%emt 0:00:23]} Qc5 {[%emt 0:09:00]} 24. Qf2 {[%emt 0:06:15]} b5 {[%emt 0:03:59]} 25. Rd6 {[%emt 0:01:15]} bxc4 {[%emt 0:02:44]} 26. Qxc5 {[%emt 0:01:44]} Rxc5 {[%emt 0:00:05]} 27. Rxa6 {[%emt 0:00:03]} c3 {[%emt 0:00:05]} 28. Rc6 {[%emt 0:01:39]} c2 {[%emt 0:06:01]} 29. Rc1 {[%emt 0:00:38]} Rd8 {[%emt 0:00:04]} 30. Rxc2 {[%emt 0:03:31]} 1-0

[Event "1000GM Schev-G5 March 2024"]
[Site "Santa Clara"]
[Date "2024.03.09"]
[Round "1.5"]
[White "Varela Velazquez, Carlos Francisco"]
[Black "Jin, Austin"]
[Result "1-0"]
[ECO "D30"]
[WhiteElo "2113"]
[BlackElo "1950"]
[Annotator "RC"]
[PlyCount "39"]
[EventDate "2024.03.06"]
[EventType "schev"]
[EventCountry "USA"]
[SourceTitle "playchess.com"]
[Source "ChessBase"]
[SourceQuality "1"]
[TimeControl "5400+30"]

1. c4 {[%emt 0:00:01]} e6 {[%emt 0:04:17]} 2. g3 {[%emt 0:00:18]} d5 {[%emt 0:00:13]} 3. Bg2 {[%emt 0:00:05]} Nf6 {[%emt 0:00:13]} 4. Nf3 {[%emt 0:00:09]} Be7 {[%emt 0:00:15]} 5. b3 {[%emt 0:00:06]} O-O {[%emt 0:00:53]} 6. Bb2 {[%emt 0:00:09]} c5 {[%emt 0:01:19]} 7. cxd5 {[%emt 0:00:11]} exd5 {[%emt 0:02:58]} 8. d4 {[%emt 0:00:40]} Nc6 {[%emt 0:01:43]} 9. O-O {[%emt 0:00:29]} Bf5 {[%emt 0:04:01]} 10. dxc5 {[%emt 0:04:18]} Bxc5 {[%emt 0:03:37]} 11. Nc3 {[%emt 0:00:08]} a6 {[%emt 0:10:44]} 12. Rc1 {[%emt 0:01:32]} Ba7 {[%emt 0:01:21]} 13. Na4 {[%emt 0:07:12]} Re8 {[%emt 0:14:27]} 14. Re1 {[%emt 0:19:30]} Ng4 {[%emt 0:10:42]} 15. Nd4 {[%emt 0:11:27]} Nxf2 {[%emt 0:11:19]} 16. Kxf2 {[%emt 0:03:58]} Qf6 {[%emt 0:08:08]} 17. e3 {[%emt 0:02:47]} Rxe3 {[%emt 0:05:44]} 18. Rxe3 {[%emt 0:18:51]} Nxd4 {[%emt 0:07:45]} 19. Bf3 {[%emt 0:05:26]} g5 {[%emt 0:06:17]} 20. Nc5 {[%emt 0:01:02]} 1-0

[Event "1000GM Schev-G5 March 2024"]
[Site "Santa Clara"]
[Date "2024.03.10"]
[Round "2.1"]
[White "Garcia Lopez, Miguel Angel"]
[Black "Zhou, Ivan"]
[Result "1/2-1/2"]
[ECO "B11"]
[WhiteElo "2262"]
[BlackElo "1905"]
[Annotator "TA"]
[PlyCount "76"]
[EventDate "2024.03.06"]
[EventType "schev"]
[EventCountry "USA"]
[SourceTitle "playchess.com"]
[Source "ChessBase"]
[SourceQuality "1"]
[TimeControl "5400+30"]

{[%evp 10,76,30,16,36,21,28,23,23,31,25,24,33,35,54,48,61,41,48,0,33,43,50,51,151,74,125,91,86,95,94,52,85,88,116,78,75,73,83,76,97,0,62,30,68,8,43,16,14,16,15,14,20,10,14,10,12,0,25,-12,-12,-13,8,8,21,20,14,14,43]} 1. e4 {[%emt 0:00:04]} c6 {[%emt 0:02:06]} 2. Nc3 {[%emt 0:00:08]} d5 {[%emt 0:00:04]} 3. Nf3 {[%emt 0:00:05][%cal Bg1f3,Bf3e5,Be5c6,Bc6d4][%mdl 32]} dxe4 {[%emt 0:00:11]} 4. Nxe4 {[%emt 0:00:09]} Nf6 {[%emt 0:00:15]} 5. Qe2 {[%emt 0:00:40]} Nxe4 {[%emt 0:01:13]} 6. Qxe4 {[%emt 0:00:07]} Nd7 {[%emt 0:01:13]} 7. Bc4 {[%emt 0:00:10] Ng5 would now be deadly.} Nf6 {[%emt 0:00:08] [#]} 8. Ne5 $1 {[%emt 0:00:07][%csl Ge5][%cal Rc4f7]} e6 {[%emt 0:00:51] White has an edge.} 9. Qe2 {[%emt 0:00:07]} b5 {[%emt 0:00:30]} 10. Bd3 {[%emt 0:00:25][%cal Oa2a4]} (10. Nxc6 Qc7 11. Bd3 (11. Bxb5 $2 a6 $19) 11... a6 $11 (11... Qxc6 $2 12. Bxb5 $18)) 10... Qc7 {[%emt 0:01:34]} 11. a4 {[%emt 0:00:08]} Bd6 {[%emt 0:04:30] [#]} 12. Nxc6 {[%emt 0:00:12]} b4 {[%emt 0:00:25][%cal Oa7a6]} (12... Qxc6 $2 13. Bxb5 $18 (13. axb5 $2 Qxg2 14. Qf1 Qd5 $19) (13. axb5 $2 Qxg2 14. Qf1 Qd5 $19)) (12... a6 13. axb5) 13. Nd4 $1 {[%emt 0:02:41] White is more active.} a6 {[%emt 0:02:23][%cal Oe8g8] Inhibits Nb5.} 14. b3 {[%emt 0:06:05]} (14. Nf5 $14 {should be considered.}) 14... Bb7 {[%emt 0:09:11][%cal Of6d5]} 15. Bb2 {[%emt 0:01:48]} Nd5 {[%emt 0:09:29][%cal Od5f4] ...Nf4! is the strong threat.} 16. Be4 {[%emt 0:04:01]} Nf4 {[%emt 0:10:33]} (16... Rc8 $14) 17. Qf3 {[%emt 0:01:03]} (17. Nb5 $142 $1 {[%cal Rb5c7]} Qd8 18. Qf3) 17... O-O-O {[%emt 0:03:26]} (17... Bxe4 $142 18. Qxe4 O-O) 18. Rc1 {[%emt 0:18:07] And now c3 would win.} Bxe4 {[%emt 0:08:26]} 19. Qxe4 {[%emt 0:00:14]} Qb7 {[%emt 0:02:31]} 20. Qxb7+ {[%emt 0:04:56]} (20. Qc6+ {looks sharper.} Bc7 21. g3 e5 22. Qxb7+ Kxb7 23. Nf5) 20... Kxb7 {[%emt 0:00:03]} 21. g3 {[%emt 0:02:08]} Nd5 {[%emt 0:04:07]} 22. Ne2 {[%emt 0:01:39]} f6 {[%emt 0:03:59]} 23. O-O {[%emt 0:00:26]} h5 {[%emt 0:02:37][%cal Bh7h5,Bh5h4][%mdl 32]} 24. Kg2 {[%emt 0:04:00]} h4 {[%emt 0:03:54]} 25. h3 {[%emt 0:53:30]} ({White should play} 25. Rfe1 $16) 25... g5 {[%emt 0:01:33]} ({Black should try} 25... Rd7 $11) 26. g4 {[%emt 0:00:00]} Rhf8 {[%emt 0:03:03]} 27. c3 {[%emt 0:00:00]} (27. Rcd1 $14) 27... Bf4 {[%emt 0:02:05]} 28. c4 {[%emt 0:00:00]} Bxd2 {[%emt 0:01:39]} 29. cxd5 {[%emt 0:00:00]} Bxc1 {[%emt 0:00:10]} 30. Bxc1 {[%emt 0:00:00]} (30. Rxc1 Rxd5 31. Bd4 a5 $14) 30... Rxd5 {[%emt 0:00:24]} 31. f4 {[%emt 0:00:00] Black must now prevent fxg5.} Rc8 {[%emt 0:02:13]} 32. fxg5 {[%emt 0:00:00]} fxg5 {[%emt 0:00:37]} (32... Rc2 $2 33. gxf6 Rxe2+ 34. Kf3 $18) 33. Rf7+ {[%emt 0:00:00]} Kb8 {[%emt 0:01:12]} 34. Rg7 {[%emt 0:00:00]} Re5 {[%emt 0:00:52] The position is equal.} 35. Kf2 {[%emt 0:00:00]} (35. Rxg5 $2 {is the wrong capture.} Rxe2+ 36. Kf3 Re1 $19) 35... Rc2 {[%emt 0:00:25]} 36. Be3 {[%emt 0:00:00]} (36. Rxg5 $2 {perishes.} Rexe2+ 37. Kf1 e5 (37... Rxc1+ 38. Kxe2 Rc3 39. Rh5 $11) 38. Rg8+ Kc7 39. Rg7+ Kd6 40. Rg6+ Kd5 $19) 36... Rb2 {[%emt 0:01:21]} 37. Rxg5 {[%emt 0:00:00]} Rxg5 {[%emt 0:00:13]} 38. Bxg5 {[%emt 0:00:00]} Rxb3 {[%emt 0:00:16] Weighted Error Value: White=0.18 (very precise) /Black=0.18 (very precise) .  Mistake:       	White=4     	Black=3      Inaccurate:     	White=3     	Black=5      OK:         	White=9     	Black=9      Best:        	White=3     	Black=3      Strong:       	White=1     	---        Brilliant:      	White=1     	---} 1/2-1/2

[Event "1000GM Schev-G5 March 2024"]
[Site "Santa Clara"]
[Date "2024.03.10"]
[Round "2.2"]
[White "Urbina Quiroz, Edwin"]
[Black "Xia, Joshua"]
[Result "1/2-1/2"]
[ECO "B81"]
[WhiteElo "2047"]
[BlackElo "1938"]
[Annotator "RC"]
[PlyCount "150"]
[EventDate "2024.03.06"]
[EventType "schev"]
[EventCountry "USA"]
[SourceTitle "playchess.com"]
[Source "ChessBase"]
[SourceQuality "1"]
[TimeControl "5400+30"]

1. e4 {[%emt 0:00:03]} c5 {[%emt 0:01:15]} 2. Nf3 {[%emt 0:01:06]} d6 {[%emt 0:00:23]} 3. d4 {[%emt 0:00:10]} cxd4 {[%emt 0:00:04]} 4. Nxd4 {[%emt 0:00:04]} Nf6 {[%emt 0:00:07]} 5. Nc3 {[%emt 0:00:04]} a6 {[%emt 0:00:04]} 6. h3 {[%emt 0:00:16]} e6 {[%emt 0:01:39]} 7. g4 {[%emt 0:00:11]} Be7 {[%emt 0:00:36]} 8. Bg2 {[%emt 0:01:16]} Nfd7 {[%emt 0:00:46]} 9. Be3 {[%emt 0:02:55]} O-O {[%emt 0:02:07]} 10. Qe2 {[%emt 0:09:59]} b5 {[%emt 0:02:35]} 11. a3 {[%emt 0:03:08]} Bb7 {[%emt 0:00:30]} 12. O-O {[%emt 0:00:16]} Nb6 {[%emt 0:00:15]} 13. Rad1 {[%emt 0:00:28]} N8d7 {[%emt 0:01:31]} 14. Nb3 {[%emt 0:07:31]} Rc8 {[%emt 0:01:32]} 15. Bc1 {[%emt 0:46:53]} Qc7 {[%emt 0:03:42]} 16. Rfe1 {[%emt 0:01:48]} Nc4 {[%emt 0:02:31]} 17. Nb1 {[%emt 0:01:03]} Bf6 {[%emt 0:01:20]} 18. c3 {[%emt 0:00:29]} a5 {[%emt 0:00:54]} 19. Nd4 {[%emt 0:03:19]} a4 {[%emt 0:06:17]} 20. g5 {[%emt 0:17:01]} Be7 {[%emt 0:01:37]} 21. h4 {[%emt 0:01:56]} Qc5 {[%emt 0:01:56]} 22. Qg4 {[%emt 0:00:09]} Nce5 {[%emt 0:14:19]} 23. Qg3 {[%emt 0:00:54]} Rfe8 {[%emt 0:00:25]} 24. h5 {[%emt 0:00:53]} Nf8 {[%emt 0:00:13]} 25. Nd2 {[%emt 0:00:31]} Nc6 {[%emt 0:01:36]} 26. N2f3 {[%emt 0:00:18]} Nd8 {[%emt 0:02:49]} 27. Nh2 {[%emt 0:00:37]} Bc6 {[%emt 0:02:07]} 28. Be3 {[%emt 0:00:18]} Qc4 {[%emt 0:00:42]} 29. Ra1 {[%emt 0:00:50]} Bd7 {[%emt 0:03:36]} 30. Bf1 {[%emt 0:00:09]} Qc7 {[%emt 0:00:29]} 31. Nxb5 {[%emt 0:00:23]} Qb7 {[%emt 0:00:16]} 32. Nxd6 {[%emt 0:00:27]} Bxd6 {[%emt 0:00:35]} 33. Qxd6 {[%emt 0:00:02]} Qxe4 {[%emt 0:00:26]} 34. Qf4 {[%emt 0:01:27]} Bc6 {[%emt 0:02:43]} 35. Qxe4 {[%emt 0:00:17]} Bxe4 {[%emt 0:00:10]} 36. Bd4 {[%emt 0:00:44]} Bc6 {[%emt 0:00:40]} 37. h6 {[%emt 0:00:15]} gxh6 {[%emt 0:00:47]} 38. Ng4 {[%emt 0:00:26]} Nd7 {[%emt 0:00:41]} 39. gxh6 {[%emt 0:00:47]} f5 {[%emt 0:00:35]} 40. Nf6+ {[%emt 0:00:28]} Nxf6 {[%emt 0:00:15]} 41. Bxf6 {[%emt 0:00:01]} Nf7 {[%emt 0:00:49]} 42. Bg7 {[%emt 0:00:53]} Ng5 {[%emt 0:00:05]} 43. Bg2 {[%emt 0:00:17]} Nf3+ {[%emt 0:00:06]} 44. Bxf3 {[%emt 0:00:30]} Bxf3 {[%emt 0:00:06]} 45. Re3 {[%emt 0:00:22]} Bd5 {[%emt 0:00:07]} 46. Rd1 {[%emt 0:00:50]} Kf7 {[%emt 0:00:19]} 47. Rd4 {[%emt 0:00:41]} Rc4 {[%emt 0:00:57]} 48. Kh2 {[%emt 0:00:30]} Rb8 {[%emt 0:00:28]} 49. Rd2 {[%emt 0:00:32]} Rh4+ {[%emt 0:00:38]} 50. Rh3 {[%emt 0:00:07]} Rg4 {[%emt 0:00:28]} 51. Rg3 {[%emt 0:00:43]} Rh4+ {[%emt 0:00:05]} 52. Rh3 {[%emt 0:00:04]} Rg4 {[%emt 0:00:05]} 53. f3 {[%emt 0:00:07]} Rc4 {[%emt 0:00:51]} 54. Bd4 {[%emt 0:00:37]} Rg8 {[%emt 0:00:19]} 55. Rg3 {[%emt 0:01:15]} Rg6 {[%emt 0:00:31]} 56. Rxg6 {[%emt 0:00:09]} Kxg6 {[%emt 0:00:41]} 57. Kg3 {[%emt 0:00:54]} Kg5 {[%emt 0:01:09]} 58. Rh2 {[%emt 0:00:33]} Rc8 {[%emt 0:00:55]} 59. Rh1 {[%emt 0:00:28]} f4+ {[%emt 0:03:58]} 60. Kf2 {[%emt 0:00:07]} Rb8 {[%emt 0:00:50]} 61. Rg1+ {[%emt 0:00:50]} Kxh6 {[%emt 0:42:28]} 62. c4 Bxc4 {[%emt 0:00:30]} 63. Be5 {[%emt 0:01:39]} Rb5 {[%emt 0:00:30]} 64. Bd4 Rb8 {[%emt 0:00:30]} 65. Be5 Rd8 {[%emt 0:00:30]} 66. Bxf4+ {[%emt 0:01:30]} Kh5 67. Rg5+ {[%emt 0:00:30]} Kh4 {[%emt 0:01:00]} 68. Rg4+ {[%emt 0:00:30]} Kh5 {[%emt 0:00:30]} 69. Rg5+ {[%emt 0:00:30]} Kh4 70. Rc5 {[%emt 0:00:30]} Bd5 {[%emt 0:01:00]} 71. Rc7 {[%emt 0:00:30]} Bc4 {[%emt 0:00:30]} 72. Rg7 Rd5 {[%emt 0:00:30]} 73. Rxh7+ {[%emt 0:01:00]} Rh5 74. Bg3+ {[%emt 0:00:30]} Kg5 {[%emt 0:01:00]} 75. f4+ {[%emt 0:00:30]} Kg6 1/2-1/2

[Event "1000GM Schev-G5 March 2024"]
[Site "Santa Clara"]
[Date "2024.03.10"]
[Round "2.4"]
[White "Bhatta, Rohit"]
[Black "Varela Velazquez, Carlos Francisco"]
[Result "0-1"]
[ECO "E08"]
[WhiteElo "1952"]
[BlackElo "2113"]
[Annotator "RC"]
[PlyCount "118"]
[EventDate "2024.03.06"]
[EventType "schev"]
[EventCountry "USA"]
[SourceTitle "playchess.com"]
[Source "ChessBase"]
[SourceQuality "1"]
[TimeControl "5400+30"]

1. d4 {[%emt 0:11:31]} Nf6 {[%emt 0:00:12]} 2. c4 {[%emt 0:00:08]} e6 {[%emt 0:00:16]} 3. g3 {[%emt 0:00:15]} d5 {[%emt 0:00:20]} 4. Bg2 {[%emt 0:00:05]} Bb4+ {[%emt 0:00:04]} 5. Bd2 {[%emt 0:00:09]} Be7 {[%emt 0:00:06]} 6. Nf3 {[%emt 0:00:08]} c6 {[%emt 0:00:24]} 7. Qc2 {[%emt 0:00:11]} Nbd7 {[%emt 0:00:05]} 8. O-O {[%emt 0:00:13]} O-O {[%emt 0:00:06]} 9. Bf4 {[%emt 0:00:13]} b6 {[%emt 0:00:04]} 10. Rd1 {[%emt 0:00:14]} Ba6 {[%emt 0:00:08]} 11. Ne5 {[%emt 0:00:26]} Rc8 {[%emt 0:00:19]} 12. Nc3 {[%emt 0:01:41]} Nh5 {[%emt 0:11:39]} 13. Bc1 {[%emt 1:21:46]} f5 {[%emt 0:02:22]} 14. Nxc6 {[%emt 0:00:00]} Rxc6 {[%emt 0:00:50]} 15. cxd5 {[%emt 0:00:00]} Rc4 {[%emt 0:07:05]} 16. dxe6 {[%emt 0:00:00]} Ndf6 {[%emt 0:00:05]} 17. d5 {[%emt 0:00:00]} Ne4 {[%emt 0:03:36]} 18. Qb3 {[%emt 0:00:00]} Rb4 {[%emt 0:10:27]} 19. Qc2 {[%emt 0:00:00]} Qc7 {[%emt 0:04:36]} 20. Be3 {[%emt 0:00:00]} Nhf6 {[%emt 0:21:37]} 21. Rac1 {[%emt 0:00:00]} Rc4 {[%emt 0:11:28]} 22. Qb3 {[%emt 0:00:00]} Nd6 {[%emt 0:03:28]} 23. Bf4 {[%emt 0:00:00]} Rc8 {[%emt 0:06:26]} 24. h3 {[%emt 0:00:00]} Qb7 {[%emt 0:02:49]} 25. a4 {[%emt 0:00:00]} R4c5 {[%emt 0:06:51]} 26. Be3 {[%emt 0:00:00]} R5c7 {[%emt 0:01:07]} 27. Bf4 {[%emt 0:00:00]} b5 {[%emt 0:06:03]} 28. Nxb5 {[%emt 0:01:06]} Rxc1 {[%emt 0:00:21]} 29. Bxc1 {[%emt 0:00:35]} Bxb5 {[%emt 0:00:25]} 30. axb5 {[%emt 0:00:51]} Qxb5 {[%emt 0:00:07]} 31. Qa3 {[%emt 0:02:02]} Qxe2 {[%emt 0:01:16]} 32. Bf3 {[%emt 0:00:10]} Qc2 {[%emt 0:00:28]} 33. Qxa7 {[%emt 0:01:35]} Kf8 {[%emt 0:00:54]} 34. b4 {[%emt 0:02:19]} Qc3 {[%emt 0:00:49]} 35. Qe3 {[%emt 0:01:40]} Qxb4 {[%emt 0:00:19]} 36. Ba3 {[%emt 0:00:25]} Qc3 {[%emt 0:00:36]} 37. Rd3 {[%emt 0:00:18]} Qc7 {[%emt 0:00:34]} 38. Bb4 {[%emt 0:00:53]} Qc1+ {[%emt 0:00:04]} 39. Qxc1 {[%emt 0:00:17]} Rxc1+ {[%emt 0:00:02]} 40. Kg2 {[%emt 0:00:09]} Rb1 {[%emt 0:00:37]} 41. Bc5 {[%emt 0:00:54]} Nfe4 {[%emt 0:00:56]} 42. Be3 {[%emt 0:00:33]} Nc4 {[%emt 0:00:49]} 43. Bd4 {[%emt 0:00:29]} Rb5 {[%emt 0:00:31]} 44. Bxe4 {[%emt 0:00:37]} fxe4 {[%emt 0:00:01]} 45. Rc3 {[%emt 0:00:06]} Nd6 {[%emt 0:01:38]} 46. Ra3 {[%emt 0:00:34]} Ne8 {[%emt 0:00:00]} 47. Re3 {[%emt 0:00:43]} Nd6 {[%emt 0:00:09]} 48. Ra3 {[%emt 0:00:05]} g6 {[%emt 0:00:44]} 49. Ra8+ {[%emt 0:00:55]} Ne8 {[%emt 0:00:01]} 50. Bg7+ {[%emt 0:00:39]} Kxg7 {[%emt 0:00:02]} 51. Rxe8 {[%emt 0:00:01]} Kf6 {[%emt 0:00:01]} 52. g4 {[%emt 0:00:44]} Rxd5 {[%emt 0:00:49]} 53. Rh8 {[%emt 0:00:05]} h5 {[%emt 0:01:10]} 54. gxh5 {[%emt 0:00:05]} Rg5+ {[%emt 0:00:13]} 55. Kh2 {[%emt 0:00:33]} Bd6+ {[%emt 0:00:11]} 56. Kh1 {[%emt 0:00:28]} Rxh5 {[%emt 0:00:01]} 57. Rxh5 {[%emt 0:00:25]} gxh5 {[%emt 0:00:02]} 58. Kg2 {[%emt 0:00:44]} Kxe6 {[%emt 0:00:09]} 59. Kf1 {[%emt 0:00:27]} Kf5 {[%emt 0:00:08]} 0-1